[Event "WCCC U10 2019"]
[Site "Weifang"]
[Date "2019.08.23"]
[Round "3.6"]
[White "Xiong, Junyi"]
[Black "Chennareddy, Yuvraj"]
[Result "1-0"]
[ECO "D44"]
[WhiteElo "1440"]
[BlackElo "1727"]
[Annotator "NA"]
[PlyCount "85"]
[EventDate "2019.08.21"]
[EventType "swiss"]
[EventCountry "CHN"]
[SourceTitle "playchess.com"]
[Source "ChessBase"]
[SourceQuality "1"]
[TimeControl "40/5400+30:1800+30"]

1. d4 {[%emt 0:00:00]} d5 {[%emt 0:00:00]} 2. c4 {[%emt 0:00:00]} e6 {[%emt 0:00:00]} 3. Nf3 {[%emt 0:00:00]} Nf6 {[%emt 0:00:00]} 4. Nc3 {[%emt 0:00:03]} c6 {[%emt 0:00:00]} 5. Bg5 {[%emt 0:00:07]} dxc4 {[%emt 0:00:00]} 6. a4 {[%emt 0:00:08]} b5 {[%emt 0:00:38]} 7. axb5 {[%emt 0:00:12]} cxb5 {[%emt 0:00:04]} 8. Bxf6 {[%emt 0:00:17]} gxf6 {[%emt 0:02:25]} 9. e3 {[%emt 0:00:45]} Bd7 {[%emt 0:22:34]} 10. Be2 {[%emt 0:00:14]} Qc7 {[%emt 0:05:54]} 11. O-O {[%emt 0:00:41]} Be7 {[%emt 0:02:16]} 12. d5 {[%emt 0:01:31]} e5 {[%emt 0:09:13]} 13. Ne4 {[%emt 0:01:18]} Qb7 {[%emt 0:05:05]} 14. Ng3 {[%emt 0:03:00]} Na6 {[%emt 0:07:21]} 15. e4 {[%emt 0:00:14]} Nc5 {[%emt 0:00:40]} 16. Nd2 {[%emt 0:01:54]} Na4 {[%emt 0:09:10]} 17. Qc2 {[%emt 0:01:16]} Rc8 {[%emt 0:00:28]} 18. b3 {[%emt 0:01:43]} cxb3 {[%emt 0:00:44]} 19. Qxb3 {[%emt 0:00:07]} Rc3 {[%emt 0:02:12]} 20. Qd1 {[%emt 0:00:07]} Qc7 {[%emt 0:04:26]} 21. Bg4 {[%emt 0:00:22]} Bb4 {[%emt 0:08:23]} 22. Bxd7+ {[%emt 0:00:15]} Qxd7 {[%emt 0:00:32]} 23. Rb1 {[%emt 0:00:17]} a5 {[%emt 0:00:11]} 24. Nh5 {[%emt 0:00:12]} Be7 {[%emt 0:13:43]} 25. f4 {[%emt 0:01:06]} Rg8 {[%emt 0:02:31]} 26. fxe5 {[%emt 0:00:27]} fxe5 {[%emt 0:00:19]} 27. Rf5 {[%emt 0:00:14]} Rg5 {[%emt 0:00:48]} 28. Rxg5 {[%emt 0:00:09]} Bxg5 {[%emt 0:00:18]} 29. Nf3 {[%emt 0:00:07]} Be3+ {[%emt 0:01:59]} 30. Kh1 {[%emt 0:00:10]} Qc8 {[%emt 0:02:07]} 31. d6 {[%emt 0:00:29]} Qd8 {[%emt 0:00:54]} 32. d7+ {[%emt 0:00:09]} Ke7 {[%emt 0:00:24]} 33. Nxe5 {[%emt 0:00:12]} Rc5 {[%emt 0:00:14]} 34. Qf3 {[%emt 0:00:48]} Bg5 {[%emt 0:00:46]} 35. Qf5 {[%emt 0:04:18]} h6 {[%emt 0:00:28]} 36. Rd1 {[%emt 0:00:18]} f6 {[%emt 0:00:38]} 37. Ng6+ {[%emt 0:00:28]} Kf7 {[%emt 0:00:12]} 38. e5 {[%emt 0:00:04]} b4 {[%emt 0:00:49]} 39. e6+ {[%emt 0:00:06]} Kg8 {[%emt 0:00:22]} 40. e7 {[%emt 0:00:06]} Rxf5 {[%emt 0:00:21]} 41. e8=Q+ {[%emt 0:30:08]} Qxe8 {[%emt 0:30:25]} 42. dxe8=Q+ {[%emt 0:00:34]} Kh7 {[%emt 0:00:07]} 43. Qf7# {[%emt 0:00:04]} 1-0

[Event "WCCC U10 2019"]
[Site "Weifang"]
[Date "2019.08.23"]
[Round "3.7"]
[White "Mamedov, Edgar"]
[Black "Sowinski, Pawel"]
[Result "1-0"]
[ECO "D38"]
[WhiteElo "1714"]
[BlackElo "1582"]
[Annotator "NA"]
[PlyCount "103"]
[EventDate "2019.08.21"]
[EventType "swiss"]
[EventCountry "CHN"]
[SourceTitle "playchess.com"]
[Source "ChessBase"]
[SourceQuality "1"]
[TimeControl "40/5400+30:1800+30"]

1. d4 {[%emt 0:00:00]} d5 {[%emt 0:00:00]} 2. Nf3 {[%emt 0:00:00]} Nf6 {[%emt 0:00:00]} 3. c4 {[%emt 0:00:09]} e6 {[%emt 0:00:00]} 4. Nc3 {[%emt 0:00:06]} Bb4 {[%emt 0:00:08]} 5. Bg5 {[%emt 0:00:29]} h6 {[%emt 0:00:09]} 6. Bxf6 {[%emt 0:00:44]} Qxf6 {[%emt 0:00:21]} 7. e3 {[%emt 0:00:55]} O-O {[%emt 0:01:15]} 8. cxd5 {[%emt 0:05:29]} exd5 {[%emt 0:00:17]} 9. Qb3 {[%emt 0:00:42]} c5 {[%emt 0:03:24]} 10. a3 {[%emt 0:08:32]} Bxc3+ {[%emt 0:04:01]} 11. bxc3 {[%emt 0:00:44]} c4 {[%emt 0:01:55]} 12. Qb2 {[%emt 0:01:22]} Nc6 {[%emt 0:00:16]} 13. Be2 {[%emt 0:00:44]} Rb8 {[%emt 0:02:25]} 14. a4 {[%emt 0:04:03]} Bf5 {[%emt 0:01:08]} 15. O-O {[%emt 0:00:46]} Qd6 {[%emt 0:01:53]} 16. Nd2 {[%emt 0:03:32]} Qe6 {[%emt 0:07:32]} 17. Rfe1 {[%emt 0:03:56]} g5 {[%emt 0:08:52]} 18. e4 {[%emt 0:08:45]} Bxe4 {[%emt 0:04:49]} 19. Bxc4 {[%emt 0:00:10]} Qg6 {[%emt 0:15:22]} 20. Nxe4 {[%emt 0:02:45]} dxc4 {[%emt 0:03:31]} 21. Nd2 {[%emt 0:08:46]} Rfc8 {[%emt 0:01:08]} 22. d5 {[%emt 0:14:50]} Na5 {[%emt 0:04:01]} 23. Qb4 {[%emt 0:02:21]} b6 {[%emt 0:01:10]} 24. Ne4 {[%emt 0:01:12]} f5 {[%emt 0:02:37]} 25. Nd6 {[%emt 0:00:49]} Rc5 {[%emt 0:04:48]} 26. Re6 {[%emt 0:01:41]} Qh7 {[%emt 0:00:38]} 27. Ne8 {[%emt 0:02:16]} Qf7 {[%emt 0:03:10]} 28. Rae1 {[%emt 0:01:09]} Rd8 {[%emt 0:28:32]} 29. Qb1 {[%emt 0:00:43]} Rdxd5 {[%emt 0:00:37]} 30. Nf6+ {[%emt 0:00:18]} Kf8 {[%emt 0:00:20]} 31. Nxd5 {[%emt 0:02:52]} Rxd5 {[%emt 0:00:04]} 32. h4 {[%emt 0:01:52]} Nb3 {[%emt 0:00:45]} 33. Rxh6 {[%emt 0:05:33]} gxh4 {[%emt 0:00:17]} 34. Ree6 {[%emt 0:01:10]} Kg7 {[%emt 0:00:18]} 35. Qe1 {[%emt 0:00:29]} Rd7 {[%emt 0:01:10]} 36. Reg6+ {[%emt 0:00:22]} Qxg6 {[%emt 0:00:36]} 37. Rxg6+ {[%emt 0:00:06]} Kxg6 {[%emt 0:00:05]} 38. Qe6+ {[%emt 0:00:10]} Kg5 {[%emt 0:00:03]} 39. Qxd7 {[%emt 0:00:06]} Kf4 {[%emt 0:00:16]} 40. Qxa7 {[%emt 0:00:09]} Ke4 {[%emt 0:00:02]} 41. Qxb6 {[%emt 0:30:12]} Kd3 {[%emt 0:30:02]} 42. Qb4 {[%emt 0:02:15]} Nd2 {[%emt 0:00:00]} 43. a5 {[%emt 0:00:00]} Ke2 {[%emt 0:00:00]} 44. a6 {[%emt 0:00:00]} h3 {[%emt 0:00:00]} 45. a7 {[%emt 0:00:00]} Nf1 {[%emt 0:00:00]} 46. Qxc4+ {[%emt 0:00:00]} Kd2 {[%emt 0:00:00]} 47. Qxf1 {[%emt 0:00:00]} h2+ {[%emt 0:00:00]} 48. Kxh2 {[%emt 0:00:00]} f4 {[%emt 0:00:00]} 49. a8=Q {[%emt 0:00:00]} f3 {[%emt 0:00:00]} 50. Qa2+ {[%emt 0:00:00]} Kxc3 {[%emt 0:00:00]} 51. Qc1+ {[%emt 0:00:00]} Kd3 {[%emt 0:00:00]} 52. Qac4# {[%emt 0:00:00]} 1-0

[Event "WCCC U10 2019"]
[Site "Weifang"]
[Date "2019.08.23"]
[Round "3.8"]
[White "Hvozdz, Aliaksandr"]
[Black "Zhang, Lichen"]
[Result "1/2-1/2"]
[ECO "B31"]
[WhiteElo "1699"]
[BlackElo "1482"]
[Annotator "NA"]
[PlyCount "78"]
[EventDate "2019.08.21"]
[EventType "swiss"]
[EventCountry "CHN"]
[SourceTitle "playchess.com"]
[Source "ChessBase"]
[SourceQuality "1"]
[TimeControl "40/5400+30:1800+30"]

1. e4 {[%emt 0:00:00]} c5 {[%emt 0:00:00]} 2. Nf3 {[%emt 0:00:00]} Nc6 {[%emt 0:00:07]} 3. Bb5 {[%emt 0:00:00]} g6 {[%emt 0:00:48]} 4. Bxc6 {[%emt 0:00:01]} dxc6 {[%emt 0:00:07]} 5. d3 {[%emt 0:00:09]} Bg7 {[%emt 0:00:51]} 6. h3 {[%emt 0:00:10]} Nf6 {[%emt 0:00:07]} 7. Nc3 {[%emt 0:00:13]} Nd7 {[%emt 0:00:27]} 8. Be3 {[%emt 0:00:11]} e5 {[%emt 0:00:26]} 9. Qd2 {[%emt 0:00:30]} b6 {[%emt 0:01:29]} 10. Bh6 {[%emt 0:00:32]} O-O {[%emt 0:01:21]} 11. Bxg7 {[%emt 0:00:22]} Kxg7 {[%emt 0:00:10]} 12. O-O {[%emt 0:00:19]} Re8 {[%emt 0:02:02]} 13. Nh2 {[%emt 0:00:40]} Nf8 {[%emt 0:02:54]} 14. f4 {[%emt 0:02:41]} exf4 {[%emt 0:02:12]} 15. Qxf4 {[%emt 0:01:35]} Qe7 {[%emt 0:02:00]} 16. Ng4 {[%emt 0:02:41]} Bxg4 {[%emt 0:00:54]} 17. Qxg4 {[%emt 0:00:21]} Ne6 {[%emt 0:01:16]} 18. Rf2 {[%emt 0:02:43]} h5 {[%emt 0:04:05]} 19. Qg3 {[%emt 0:00:54]} Qg5 {[%emt 0:02:42]} 20. Qxg5 {[%emt 0:04:35]} Nxg5 {[%emt 0:00:10]} 21. Raf1 {[%emt 0:01:52]} Re7 {[%emt 0:01:38]} 22. b3 {[%emt 0:04:49]} Ne6 {[%emt 0:01:38]} 23. e5 {[%emt 0:03:58]} Nd4 {[%emt 0:03:15]} 24. Ne4 {[%emt 0:00:44]} Nf5 {[%emt 0:02:57]} 25. Nd6 {[%emt 0:00:10]} Nxd6 {[%emt 0:01:17]} 26. exd6 {[%emt 0:00:42]} Rd7 {[%emt 0:00:07]} 27. Re2 {[%emt 0:01:35]} Rad8 {[%emt 0:03:37]} 28. Rfe1 {[%emt 0:05:20]} Rxd6 {[%emt 0:00:15]} 29. Re8 {[%emt 0:00:21]} Rxe8 {[%emt 0:00:37]} 30. Rxe8 {[%emt 0:00:15]} Re6 {[%emt 0:00:16]} 31. Ra8 {[%emt 0:00:28]} Re7 {[%emt 0:01:55]} 32. Kf2 {[%emt 0:00:28]} Rc7 {[%emt 0:00:12]} 33. h4 {[%emt 0:01:06]} Kf6 {[%emt 0:00:37]} 34. Kf3 {[%emt 0:00:15]} Ke5 {[%emt 0:00:15]} 35. Ke3 {[%emt 0:00:23]} Re7 {[%emt 0:00:46]} 36. Rc8 {[%emt 0:00:34]} Kd5+ {[%emt 0:01:03]} 37. Kd2 {[%emt 0:01:04]} Ke5 {[%emt 0:03:54]} 38. Ke3 {[%emt 0:00:55]} Kd6+ {[%emt 0:00:26]} 39. Kf3 {[%emt 0:00:19]} Rc7 {[%emt 0:00:46]} 1/2-1/2

[Event "WCCC U10 2019"]
[Site "Weifang"]
[Date "2019.08.23"]
[Round "3.9"]
[White "Nguyen, Anh Khoa"]
[Black "Xie, Bryan"]
[Result "0-1"]
[ECO "B35"]
[WhiteElo "1341"]
[BlackElo "1696"]
[Annotator "NA"]
[PlyCount "120"]
[EventDate "2019.08.21"]
[EventType "swiss"]
[EventCountry "CHN"]
[SourceTitle "playchess.com"]
[Source "ChessBase"]
[SourceQuality "1"]
[TimeControl "40/5400+30:1800+30"]

1. e4 {[%emt 0:00:00]} c5 {[%emt 0:00:00]} 2. Nf3 {[%emt 0:00:00]} Nc6 {[%emt 0:00:00]} 3. d4 {[%emt 0:00:00]} cxd4 {[%emt 0:00:00]} 4. Nxd4 {[%emt 0:00:02]} g6 {[%emt 0:00:04]} 5. Nc3 {[%emt 0:00:15]} Bg7 {[%emt 0:00:07]} 6. Be3 {[%emt 0:00:23]} Nf6 {[%emt 0:00:33]} 7. Bc4 {[%emt 0:00:21]} O-O {[%emt 0:00:25]} 8. Bb3 {[%emt 0:00:17]} d6 {[%emt 0:00:44]} 9. h3 {[%emt 0:00:18]} Bd7 {[%emt 0:00:22]} 10. O-O {[%emt 0:00:17]} Nxd4 {[%emt 0:00:32]} 11. Bxd4 {[%emt 0:00:26]} Bc6 {[%emt 0:00:13]} 12. Re1 {[%emt 0:00:14]} a5 {[%emt 0:03:54]} 13. a4 {[%emt 0:03:22]} Nd7 {[%emt 0:00:58]} 14. Nd5 {[%emt 0:01:49]} Bxd4 {[%emt 0:04:49]} 15. Qxd4 {[%emt 0:00:13]} Nc5 {[%emt 0:00:05]} 16. f4 {[%emt 0:06:47]} Re8 {[%emt 0:05:56]} 17. f5 {[%emt 0:22:15]} Nxb3 {[%emt 0:01:58]} 18. cxb3 {[%emt 0:00:30]} Bxd5 {[%emt 0:00:18]} 19. Qxd5 {[%emt 0:01:10]} Qb6+ {[%emt 0:00:58]} 20. Kh1 {[%emt 0:01:56]} Rac8 {[%emt 0:02:05]} 21. fxg6 {[%emt 0:04:25]} hxg6 {[%emt 0:00:15]} 22. Rf1 {[%emt 0:05:46]} Rf8 {[%emt 0:02:39]} 23. Rf4 {[%emt 0:02:17]} Rc5 {[%emt 0:02:52]} 24. Qd3 {[%emt 0:04:39]} Qc6 {[%emt 0:03:46]} 25. Raf1 {[%emt 0:06:22]} Rc1 {[%emt 0:04:08]} 26. Kh2 {[%emt 0:02:28]} Rxf1 {[%emt 0:01:02]} 27. Qxf1 {[%emt 0:00:22]} Qc2 {[%emt 0:00:35]} 28. Qb5 {[%emt 0:02:03]} Qxb2 {[%emt 0:00:29]} 29. Qxb7 {[%emt 0:00:35]} Qe5 {[%emt 0:00:16]} 30. g3 {[%emt 0:00:54]} Qb2+ {[%emt 0:00:16]} 31. Kg1 {[%emt 0:02:42]} Qc1+ {[%emt 0:02:42]} 32. Rf1 {[%emt 0:00:36]} Qe3+ {[%emt 0:01:10]} 33. Kg2 {[%emt 0:00:43]} e6 {[%emt 0:02:04]} 34. h4 {[%emt 0:12:46]} Kg7 {[%emt 0:02:16]} 35. Rf2 {[%emt 0:01:38]} Kh6 {[%emt 0:03:05]} 36. Qe7 {[%emt 0:06:12]} Qxe4+ {[%emt 0:00:14]} 37. Kh2 {[%emt 0:00:42]} Kg7 {[%emt 0:00:16]} 38. Qxd6 {[%emt 0:00:48]} Qe3 {[%emt 0:00:15]} 39. Rf4 {[%emt 0:05:47]} Qe2+ {[%emt 0:02:32]} 40. Kh3 {[%emt 0:00:52]} Qe1 {[%emt 0:04:00]} 41. Qc6 {[%emt 0:32:28]} Rd8 {[%emt 0:32:12]} 42. Qf3 {[%emt 0:00:56]} f5 {[%emt 0:00:42]} 43. Rc4 {[%emt 0:00:00]} Rd3 {[%emt 0:00:00]} 44. Qg2 {[%emt 0:00:00]} e5 {[%emt 0:00:00]} 45. h5 {[%emt 0:00:00]} f4 {[%emt 0:00:00]} 46. Rc7+ {[%emt 0:00:00]} Kh6 {[%emt 0:00:00]} 47. Kh4 {[%emt 0:00:00]} g5+ {[%emt 0:00:00]} 48. Kg4 {[%emt 0:00:00]} Rxg3+ {[%emt 0:00:00]} 49. Qxg3 {[%emt 0:00:00]} Qxg3+ {[%emt 0:00:00]} 50. Kf5 {[%emt 0:00:00]} Qd3+ {[%emt 0:00:00]} 51. Kg4 {[%emt 0:00:00]} f3 {[%emt 0:00:00]} 52. Rc6+ {[%emt 0:00:02]} Kg7 {[%emt 0:00:00]} 53. Rc7+ {[%emt 0:00:05]} Kf8 {[%emt 0:00:00]} 54. Rc8+ {[%emt 0:00:09]} Ke7 {[%emt 0:00:00]} 55. Rc7+ {[%emt 0:00:05]} Kd8 {[%emt 0:00:00]} 56. Rg7 {[%emt 0:00:12]} f2 {[%emt 0:00:00]} 57. Rf7 {[%emt 0:00:28]} f1=Q {[%emt 0:00:00]} 58. Rxf1 {[%emt 0:00:06]} Qxf1 {[%emt 0:00:00]} 59. h6 {[%emt 0:00:07]} Qf4+ {[%emt 0:00:00]} 60. Kh3 {[%emt 0:00:13]} g4+ {[%emt 0:00:00]} 0-1

[Event "WCCC U10 2019"]
[Site "Weifang"]
[Date "2019.08.23"]
[Round "3.10"]
[White "Yu, Tianxi"]
[Black "Renji, Rafael Ninan"]
[Result "1-0"]
[ECO "E97"]
[WhiteElo "1694"]
[BlackElo "1446"]
[Annotator "NA"]
[PlyCount "109"]
[EventDate "2019.08.21"]
[EventType "swiss"]
[EventCountry "CHN"]
[SourceTitle "playchess.com"]
[Source "ChessBase"]
[SourceQuality "1"]
[TimeControl "40/5400+30:1800+30"]

1. d4 {[%emt 0:00:00]} Nf6 {[%emt 0:00:00]} 2. c4 {[%emt 0:00:02]} g6 {[%emt 0:00:00]} 3. Nc3 {[%emt 0:01:17]} Bg7 {[%emt 0:00:02]} 4. e4 {[%emt 0:00:22]} d6 {[%emt 0:00:07]} 5. Nf3 {[%emt 0:00:51]} O-O {[%emt 0:00:10]} 6. Be2 {[%emt 0:01:31]} Nbd7 {[%emt 0:00:13]} 7. O-O {[%emt 0:00:34]} e5 {[%emt 0:00:15]} 8. dxe5 {[%emt 0:02:47]} Nxe5 {[%emt 0:01:25]} 9. Nxe5 {[%emt 0:00:07]} dxe5 {[%emt 0:00:06]} 10. Qxd8 {[%emt 0:00:01]} Rxd8 {[%emt 0:00:10]} 11. Bg5 {[%emt 0:00:02]} Rd4 {[%emt 0:10:01]} 12. Be3 {[%emt 0:09:28]} Rd7 {[%emt 0:02:11]} 13. c5 {[%emt 0:04:24]} c6 {[%emt 0:02:34]} 14. f3 {[%emt 0:02:18]} Rd8 {[%emt 0:04:50]} 15. Bc4 {[%emt 0:06:17]} Be6 {[%emt 0:04:02]} 16. Bxe6 {[%emt 0:09:01]} fxe6 {[%emt 0:00:14]} 17. Rfd1 {[%emt 0:01:31]} Kf7 {[%emt 0:03:12]} 18. Kf2 {[%emt 0:01:31]} Ke7 {[%emt 0:02:20]} 19. Ke2 {[%emt 0:01:31]} Rxd1 {[%emt 0:01:32]} 20. Rxd1 {[%emt 0:00:43]} Rd8 {[%emt 0:00:45]} 21. b4 {[%emt 0:02:23]} Rxd1 {[%emt 0:02:29]} 22. Nxd1 {[%emt 0:01:27]} Kd7 {[%emt 0:02:06]} 23. Nb2 {[%emt 0:02:20]} Nh5 {[%emt 0:03:49]} 24. g3 {[%emt 0:09:45]} Nf6 {[%emt 0:04:28]} 25. Nc4 {[%emt 0:12:19]} Ne8 {[%emt 0:01:26]} 26. Bc1 {[%emt 0:02:25]} Nc7 {[%emt 0:05:21]} 27. Bb2 {[%emt 0:04:44]} Nb5 {[%emt 0:01:51]} 28. Nxe5+ {[%emt 0:03:37]} Ke8 {[%emt 0:03:49]} 29. a4 {[%emt 0:03:45]} Nc7 {[%emt 0:01:52]} 30. Nc4 {[%emt 0:05:31]} Bxb2 {[%emt 0:01:20]} 31. Nxb2 {[%emt 0:00:18]} Ke7 {[%emt 0:01:14]} 32. Kd3 {[%emt 0:02:10]} b6 {[%emt 0:10:47]} 33. cxb6 {[%emt 0:02:01]} axb6 {[%emt 0:00:11]} 34. a5 {[%emt 0:00:23]} bxa5 {[%emt 0:01:46]} 35. bxa5 {[%emt 0:01:05]} Kd6 {[%emt 0:01:38]} 36. Kc4 {[%emt 0:02:35]} Na6 {[%emt 0:03:38]} 37. Nd3 {[%emt 0:02:30]} e5 {[%emt 0:03:10]} 38. Nb4 {[%emt 0:02:49]} Nc7 {[%emt 0:00:29]} 39. Nd3 {[%emt 0:02:07]} Na6 {[%emt 0:00:21]} 40. f4 {[%emt 0:00:32]} exf4 {[%emt 0:00:56]} 41. gxf4 {[%emt 0:30:37]} h5 {[%emt 0:31:01]} 42. e5+ {[%emt 0:00:00]} Ke7 {[%emt 0:00:00]} 43. Nc5 {[%emt 0:00:00]} Nc7 {[%emt 0:00:00]} 44. a6 {[%emt 0:00:00]} Nb5 {[%emt 0:00:00]} 45. Ne4 {[%emt 0:00:00]} Ke6 {[%emt 0:00:00]} 46. Kc5 {[%emt 0:00:00]} Nc7 {[%emt 0:00:00]} 47. a7 {[%emt 0:00:00]} Kd7 {[%emt 0:00:00]} 48. Kb6 {[%emt 0:00:00]} c5 {[%emt 0:00:00]} 49. Nxc5+ {[%emt 0:00:00]} Kc8 {[%emt 0:00:00]} 50. Kc6 {[%emt 0:00:00]} Na8 {[%emt 0:00:00]} 51. e6 {[%emt 0:00:00]} Nc7 {[%emt 0:00:00]} 52. e7 {[%emt 0:00:00]} Ne6 {[%emt 0:00:00]} 53. e8=Q+ {[%emt 0:00:00]} Nd8+ {[%emt 0:00:00]} 54. Kb6 {[%emt 0:00:00]} g5 {[%emt 0:00:00]} 55. a8=Q# {[%emt 0:00:00]} 1-0

[Event "WCCC U10 2019"]
[Site "Weifang"]
[Date "2019.08.24"]
[Round "4.1"]
[White "Xie, Bryan"]
[Black "Materia, Marco"]
[Result "0-1"]
[ECO "C56"]
[WhiteElo "1696"]
[BlackElo "2236"]
[Annotator "ChessBase"]
[PlyCount "121"]
[EventDate "2019.08.21"]
[EventType "swiss"]
[EventCountry "CHN"]
[SourceTitle "playchess.com"]
[Source "ChessBase"]
[SourceQuality "1"]
[TimeControl "40/5400+30:1800+30"]

1. e4 {[%emt 0:00:00]} e5 {[%emt 0:00:00]} 2. Nf3 {[%emt 0:00:00]} Nc6 {[%emt 0:00:00]} 3. d4 {[%emt 0:00:00]} exd4 {[%emt 0:00:00]} 4. Bc4 {[%emt 0:00:00]} Nf6 {[%emt 0:00:00]} 5. e5 {[%emt 0:00:00]} Ne4 {[%emt 0:00:02]} 6. O-O {[%emt 0:00:31]} d5 {[%emt 0:00:11]} 7. Bb5 {[%emt 0:02:03]} Bg4 {[%emt 0:00:54]} 8. Bf4 {[%emt 0:04:06]} Bc5 {[%emt 0:11:18]} 9. Nbd2 {[%emt 0:08:56]} g5 {[%emt 0:05:31]} 10. Bg3 {[%emt 0:00:47]} h5 {[%emt 0:01:11]} 11. h3 {[%emt 0:09:18]} Bd7 {[%emt 0:06:51]} 12. Bxc6 {[%emt 0:00:21]} bxc6 {[%emt 0:00:27]} 13. Nxe4 {[%emt 0:01:55]} dxe4 {[%emt 0:00:08]} 14. Nxd4 {[%emt 0:00:07]} Qe7 {[%emt 0:06:56]} 15. Nb3 {[%emt 0:02:29]} Bb6 {[%emt 0:01:50]} 16. Qe2 {[%emt 0:00:52]} h4 {[%emt 0:11:07]} 17. Bh2 {[%emt 0:00:29]} e3 {[%emt 0:00:41]} 18. fxe3 {[%emt 0:02:15]} Rg8 {[%emt 0:05:27]} 19. Nd4 {[%emt 0:06:13]} g4 {[%emt 0:09:31]} 20. e6 {[%emt 0:00:27]} Bxe6 {[%emt 0:02:01]} 21. hxg4 {[%emt 0:01:01]} Rxg4 {[%emt 0:06:21]} 22. Nxe6 {[%emt 0:03:34]} Qxe6 {[%emt 0:00:09]} 23. Qf3 {[%emt 0:03:00]} O-O-O {[%emt 0:01:15]} 24. Qxf7 {[%emt 0:01:59]} Qxf7 {[%emt 0:01:19]} 25. Rxf7 {[%emt 0:00:06]} Rd2 {[%emt 0:00:05]} 26. Be5 {[%emt 0:01:05]} Bxe3+ {[%emt 0:06:00]} 27. Kh1 {[%emt 0:01:09]} Bb6 {[%emt 0:00:24]} 28. Rg7 {[%emt 0:01:27]} Rdxg2 {[%emt 0:00:36]} 29. Rxg4 {[%emt 0:00:12]} Rxg4 {[%emt 0:00:06]} 30. Rd1 {[%emt 0:01:22]} Re4 {[%emt 0:00:13]} 31. Bf6 {[%emt 0:00:04]} Bf2 {[%emt 0:01:00]} 32. Rd2 {[%emt 0:00:28]} Rf4 {[%emt 0:00:55]} 33. Be5 {[%emt 0:01:24]} Rf5 {[%emt 0:00:58]} 34. Re2 {[%emt 0:03:45]} h3 {[%emt 0:04:21]} 35. Kh2 {[%emt 0:01:59]} Rf3 {[%emt 0:00:42]} 36. Rd2 {[%emt 0:00:19]} Be1 {[%emt 0:07:21]} 37. Re2 {[%emt 0:02:30]} Bb4 {[%emt 0:00:27]} 38. c4 {[%emt 0:09:17]} Bd6 {[%emt 0:00:37]} 39. Bxd6 {[%emt 0:01:41]} cxd6 {[%emt 0:00:07]} 40. Re7 {[%emt 0:00:06]} Rf2+ {[%emt 0:00:47]} 41. Kxh3 {[%emt 0:30:22]} Rxb2 {[%emt 0:30:29]} 42. Rxa7 {[%emt 0:00:28]} Rb4 {[%emt 0:02:19]} 43. Kg4 {[%emt 0:00:50]} Rxc4+ {[%emt 0:00:32]} 44. Kf5 {[%emt 0:01:42]} Rd4 {[%emt 0:00:25]} 45. Ke6 {[%emt 0:02:14]} c5 {[%emt 0:00:22]} 46. Ra6 {[%emt 0:00:42]} Kc7 {[%emt 0:00:53]} 47. Ra7+ {[%emt 0:00:16]} Kc6 {[%emt 0:00:09]} 48. Ra8 {[%emt 0:00:03]} Re4+ {[%emt 0:00:08]} 49. Kf5 {[%emt 0:00:04]} Re7 {[%emt 0:00:14]} 50. Rc8+ {[%emt 0:00:24]} Kd5 {[%emt 0:00:07]} 51. a4 {[%emt 0:00:07]} Ra7 {[%emt 0:00:12]} 52. Kf4 {[%emt 0:00:03]} Kd4 {[%emt 0:00:11]} 53. Kf3 {[%emt 0:00:11]} Rxa4 {[%emt 0:00:10]} 54. Ke2 {[%emt 0:00:05]} Ra2+ {[%emt 0:00:05]} 55. Kd1 {[%emt 0:00:04]} c4 {[%emt 0:00:07]} 56. Rc7 {[%emt 0:00:14]} Rh2 {[%emt 0:00:24]} 57. Rc8 {[%emt 0:00:13]} Kd3 {[%emt 0:00:07]} 58. Kc1 {[%emt 0:00:28]} c3 {[%emt 0:00:05]} 59. Kb1 {[%emt 0:00:03]} Rh1+ {[%emt 0:00:05]} 60. Ka2 {[%emt 0:00:04]} c2 {[%emt 0:00:19]} 61. Ra8 {[%emt 0:00:53]} 0-1

[Event "WCCC U10 2019"]
[Site "Weifang"]
[Date "2019.08.24"]
[Round "4.2"]
[White "Kong, Xiangrui"]
[Black "Yu, Tianxi"]
[Result "1-0"]
[ECO "B78"]
[WhiteElo "1889"]
[BlackElo "1694"]
[Annotator "NA"]
[PlyCount "93"]
[EventDate "2019.08.21"]
[EventType "swiss"]
[EventCountry "CHN"]
[SourceTitle "playchess.com"]
[Source "ChessBase"]
[SourceQuality "1"]
[TimeControl "40/5400+30:1800+30"]

1. e4 {[%emt 0:00:00]} c5 {[%emt 0:00:00]} 2. Nf3 {[%emt 0:00:00]} d6 {[%emt 0:00:00]} 3. d4 {[%emt 0:00:08]} cxd4 {[%emt 0:00:05]} 4. Nxd4 {[%emt 0:00:02]} Nf6 {[%emt 0:00:06]} 5. Nc3 {[%emt 0:00:07]} g6 {[%emt 0:00:03]} 6. Be3 {[%emt 0:00:06]} Bg7 {[%emt 0:00:02]} 7. f3 {[%emt 0:00:22]} O-O {[%emt 0:00:08]} 8. Qd2 {[%emt 0:00:03]} Nc6 {[%emt 0:00:06]} 9. Bc4 {[%emt 0:00:08]} Bd7 {[%emt 0:00:07]} 10. O-O-O {[%emt 0:00:12]} Rc8 {[%emt 0:00:04]} 11. Bb3 {[%emt 0:00:03]} Nxd4 {[%emt 0:00:05]} 12. Bxd4 {[%emt 0:00:05]} b5 {[%emt 0:00:01]} 13. e5 {[%emt 0:00:05] B78: Sicilian Dragon: Yugoslav Attack, 9 Bc4 Bd7 10 0-0-0 Rc8} (13. Nd5 Nxd5 14. Bxg7 Kxg7 15. exd5 a5 16. a3 Kg8 17. Rhe1 Rc5 18. Re3 b4 19. axb4 axb4 20. Qxb4 Qa8 21. Kd2 {½-½ (46) Alekseenko,K (2609)-Vocaturo,D (2620) Batumi 2018}) 13... dxe5 {[%emt 0:01:06]} 14. Bxe5 {[%emt 0:00:09]} Bc6 {[%emt 0:00:45]} 15. Qxd8 {[%emt 0:00:47]} Rfxd8 {[%emt 0:00:20]} 16. a3 {[%emt 0:00:25]} e6 {[%emt 0:01:33]} 17. Kb1 $146 {[%emt 0:03:23]} ({Predecessor:} 17. Bd4 a6 18. Bb6 Bh6+ 19. Kb1 Rd2 20. Rxd2 Bxd2 {½-½ (37) Zambrana,O (2473)-Zapata Ferrada,M (2378) Mar del Plata 2009}) 17... Nd7 {[%emt 0:03:31]} 18. Bxg7 {[%emt 0:00:48]} Kxg7 {[%emt 0:00:06]} 19. Ne2 {[%emt 0:06:28]} Nc5 {[%emt 0:00:58]} 20. Ba2 {[%emt 0:00:28]} e5 {[%emt 0:04:11]} 21. Nc3 {[%emt 0:01:41]} e4 {[%emt 0:03:43]} 22. b4 {[%emt 0:05:42]} Na4 {[%emt 0:00:20]} 23. Nxa4 {[%emt 0:00:43]} bxa4 {[%emt 0:00:06]} 24. Rxd8 {[%emt 0:01:14]} Rxd8 {[%emt 0:00:05]} 25. fxe4 {[%emt 0:05:29]} Bxe4 {[%emt 0:01:30]} 26. Re1 {[%emt 0:01:06]} f5 {[%emt 0:02:54]} 27. Re2 {[%emt 0:00:51]} Kf6 {[%emt 0:01:03]} 28. Kb2 {[%emt 0:00:46]} h5 {[%emt 0:04:33]} 29. c4 {[%emt 0:05:59]} h4 {[%emt 0:07:16]} 30. c5 {[%emt 0:02:18]} g5 {[%emt 0:01:51]} 31. Bb1 {[%emt 0:04:35]} Ke5 {[%emt 0:07:29]} 32. Bc2 {[%emt 0:03:07]} g4 {[%emt 0:02:54]} 33. Bxa4 $11 {[%emt 0:01:14]} g3 {[%emt 0:05:20]} 34. h3 {[%emt 0:03:01]} f4 {[%emt 0:07:55]} 35. Bc2 {[%emt 0:01:38]} Rd4 {[%emt 0:01:39]} 36. c6 {[%emt 0:00:15]} f3 {[%emt 0:12:35]} 37. gxf3 {[%emt 0:00:39]} g2 {[%emt 0:02:42]} 38. c7 {[%emt 0:03:32]} g1=Q {[%emt 0:03:47]} 39. c8=Q {[%emt 0:01:33]} Qg7 {[%emt 0:05:10]} 40. Qc3 {[%emt 0:01:41]} Kd5 {[%emt 0:02:52]} 41. Bxe4+ {[%emt 0:31:14]} Kd6 {[%emt 0:31:13]} 42. Qc5+ {[%emt 0:00:36]} Ke6 {[%emt 0:00:28]} 43. Bf5+ {[%emt 0:00:15]} Kf7 {[%emt 0:00:33]} 44. Qe7+ {[%emt 0:00:18]} Kg8 {[%emt 0:00:26]} 45. Qe8+ {[%emt 0:00:06]} Qf8 {[%emt 0:00:08]} 46. Qg6+ {[%emt 0:00:06]} Qg7 {[%emt 0:00:11]} 47. Re8# {[%emt 0:00:04]} 1-0